bitfinex-derivatives/quotes_ETHF0:USTF0_20260310
["timestamp","ask_amount","ask_price","bid_price","bid_amount"]
[1773152193541,1.77904942,2010.8,2009.7,6.49]
[1773152193938,1.77904942,2010.8,2009.7,8.00942628]
[1773152194433,1.53040942,2010.8,2009.8,1.51942628]
[1773152195237,1.53040942,2010.8,2009.9,8.00942628]
[1773152195438,1.50609293,2011.0,2010.0,1.51942628]
[1773152195745,1.50609293,2010.8,2009.6,1.51942628]
[1773152195938,1.50609293,2010.6,2009.5,6.49530394]
[1773152196136,1.50609293,2010.4,2009.5,0.00430394]
[1773152196337,1.50609293,2010.4,2008.9,1.51942628]
[1773152196338,1.50609293,2010.0,2008.9,1.51942628]
[1773152197341,1.50609293,2010.0,2008.9,1.52476064]
[1773152197535,1.50609293,2010.0,2009.1,1.51942628]
[1773152197740,1.50609293,2010.2,2009.1,1.51942628]
[1773152198037,1.50609293,2010.6,2009.5,1.51942628]
[1773152198240,1.50609293,2010.6,2009.4,0.24881]
[1773152198241,1.50609293,2010.6,2009.4,6.491]
[1773152198440,1.50609293,2010.6,2009.4,8.01042628]
[1773152198639,1.50609293,2010.6,2009.5,6.491]
[1773152198839,1.50609293,2010.6,2009.5,8.01042628]
[1773152199039,1.50609293,2010.6,2009.5,1.51942628]
[1773152199237,1.50609293,2010.6,2009.5,8.01042628]
[1773152199437,1.50609293,2010.6,2009.6,1.51942628]
[1773152200040,1.50609293,2010.8,2009.8,1.51942628]
[1773152200538,1.50609293,2010.8,2009.5,1.51942628]
[1773152200743,1.50609293,2010.6,2009.5,1.51942628]
[1773152200944,1.50609293,2010.6,2009.6,6.492]
[1773152201237,1.50609293,2011.0,2009.9,1.51942628]
[1773152201444,1.50609293,2011.0,2010.1,1.51942628]
[1773152201745,1.50609293,2011.4,2010.5,1.51942628]
[1773152201946,1.50609293,2011.4,2010.6,1.51942628]
[1773152202151,1.50609293,2011.4,2010.3,8.01142628]
[1773152202353,1.50609293,2011.4,2010.3,1.51942628]
[1773152202650,1.50609293,2011.4,2010.4,6.492]
[1773152202849,1.5124402,2011.4,2010.4,6.492]
[1773152203048,1.5124402,2011.4,2010.3,8.01685875]
[1773152203251,1.7610102,2011.4,2010.3,1.52485875]
[1773152203646,1.50609293,2011.1,2010.3,0.00543247]
[1773152203842,1.50609293,2010.9,2010.3,0.00543247]
[1773152204042,1.50609293,2010.9,2009.7,8.01142628]
[1773152204356,1.50609293,2010.9,2009.8,1.51942628]
[1773152204944,1.50609293,2010.9,2009.8,1.52486892]
[1773152205254,1.50609293,2011.1,2010.0,1.51942628]
[1773152205455,1.50609293,2011.3,2010.0,1.51942628]
[1773152206052,0.00634727,2011.4,2010.0,1.51942628]
[1773152206053,1.50609293,2011.1,2010.0,1.51942628]
[1773152206655,1.50609293,2011.1,2010.0,8.01142628]
[1773152207254,1.4685731,2010.9,2010.0,1.51942628]
[1773152207455,1.4685731,2010.9,2009.8,8.01615784]
[1773152207656,1.4685731,2010.7,2009.8,0.00544264]
[1773152208052,1.7172331,2010.6,2009.8,0.00544264]
[1773152208250,1.4685731,2010.9,2009.8,1.52415784]
[1773152209352,1.4685731,2010.9,2010.0,1.5187152]
[1773152209855,1.4685731,2011.3,2010.2,1.5187152]
[1773152210051,1.4685731,2011.3,2010.6,1.5187152]
[1773152210252,1.4685731,2011.3,2010.6,8.0107152]
[1773152210452,1.4685731,2011.3,2010.6,1.5187152]
[1773152210956,1.4685731,2011.3,2010.6,8.0107152]
[1773152211651,0.00634727,2011.4,2010.7,1.5187152]
[1773152212156,0.00634727,2011.4,2010.8,8.0107152]
[1773152212353,0.00634727,2011.4,2010.9,1.5187152]
[1773152213061,1.4685731,2011.8,2010.9,1.5187152]
[1773152213354,1.4685731,2012.4,2011.1,1.5187152]
[1773152213660,1.4685731,2012.4,2010.6,16.46632446]
[1773152213661,1.4685731,2012.4,2011.3,1.5187152]
[1773152213853,1.4685731,2012.4,2011.5,1.5187152]
[1773152214157,1.47458914,2012.4,2011.5,1.52512548]
[1773152214355,1.4685731,2012.2,2011.5,0.00641028]
[1773152214548,0.24845,2012.3,2010.2,27.65767002]
[1773152214549,1.4685731,2012.0,2011.0,6.492]
[1773152214754,1.4685731,2012.3,2011.0,1.5187152]
[1773152215261,1.4685731,2012.1,2011.0,1.5187152]
[1773152215657,1.4685731,2011.9,2011.0,1.5237525]
[1773152216057,1.4685731,2012.1,2011.0,1.7723625]
[1773152216256,1.4685731,2012.3,2011.0,1.7723625]
[1773152217363,1.4685731,2012.3,2011.3,1.5187152]
[1773152217550,0.00601604,2012.4,2011.5,1.5187152]
[1773152217751,1.47458914,2012.4,2011.5,1.5187152]
[1773152218355,1.47458914,2012.4,2011.4,6.491]
[1773152218555,1.47458914,2012.4,2011.5,1.5187152]
[1773152219755,1.4685731,2012.2,2011.4,6.491]
[1773152220358,1.47458914,2012.4,2011.5,1.5187152]
[1773152220858,1.47458914,2012.4,2011.3,1.5187152]
[1773152221063,1.47458914,2012.4,2011.3,1.7672952]
[1773152221570,1.47458914,2012.4,2011.5,1.5187152]
[1773152221760,1.47458914,2012.4,2011.5,8.0097152]
[1773152221957,1.47458914,2012.4,2011.6,1.5187152]
[1773152222356,1.47458914,2012.4,2011.6,8.0097152]
[1773152222652,1.47458914,2012.4,2011.7,1.5187152]
[1773152222853,1.47458914,2012.4,2011.0,3.95553766]
[1773152222854,1.72302914,2012.4,2011.1,1.5187152]
[1773152223057,1.72302914,2012.4,2011.3,1.5187152]
[1773152223758,0.00601604,2012.4,2011.7,1.52370806]
[1773152223963,7.94016203,2013.6,2012.1,1.52370806]
[1773152223964,1.54368649,2013.3,2012.1,1.52370806]
[1773152224161,6.491,2013.6,2011.6,1.52370806]
[1773152224162,1.54368649,2013.1,2011.6,1.52370806]
[1773152224463,1.54368649,2013.1,2012.0,1.52370806]
[1773152224958,0.00433639,2013.1,2012.3,0.24845]
[1773152225165,1.54368649,2013.6,2012.7,1.77211806]
[1773152225359,1.54368649,2013.6,2012.8,1.52370806]
[1773152225573,1.54368649,2014.2,2013.0,1.52370806]
[1773152226070,0.24822,2014.3,2013.0,6.492]
[1773152226071,0.24826,2013.9,2013.0,6.492]
[1773152226264,1.54797321,2014.2,2013.1,1.52370806]
[1773152227867,0.00428672,2014.2,2013.3,1.52370806]
[1773152228066,1.54797321,2014.2,2013.3,1.52370806]
[1773152228272,1.54797321,2014.2,2013.0,0.00355604]
[1773152228471,1.54368649,2014.0,2013.0,0.00355604]
[1773152228775,6.11063672,2014.2,2013.0,0.00355604]
[1773152228776,1.54368649,2013.8,2013.0,0.00355604]
[1773152229177,1.54368649,2013.6,2013.0,0.00355604]
[1773152229370,1.54368649,2013.6,2012.5,1.52370806]
[1773152229570,1.54368649,2013.6,2012.5,1.77212806]
[1773152229965,1.54368649,2013.9,2012.8,1.52370806]
[1773152230166,1.54797321,2014.2,2013.2,1.52370806]
[1773152230378,1.54368649,2014.8,2013.5,1.52370806]
[1773152230767,1.54368649,2014.8,2013.7,1.52370806]
[1773152230972,1.54368649,2014.8,2013.9,1.52370806]
[1773152231173,1.54368649,2014.8,2014.1,1.52370806]
[1773152231375,0.00585211,2014.8,2014.1,1.52370806]
[1773152231576,1.5495386,2014.8,2014.1,1.52370806]
[1773152231776,1.5495386,2014.8,2014.0,8.01370806]
[1773152231972,1.54368649,2015.5,2014.5,1.52370806]
[1773152232179,1.54368649,2016.3,2014.7,1.52370806]
[1773152232379,1.54368649,2016.1,2014.8,6.49]
[1773152232579,1.54368649,2016.1,2014.8,8.01370806]
[1773152232777,1.54368649,2016.1,2014.9,1.52370806]
[1773152232972,1.54368649,2016.1,2015.1,1.52370806]
[1773152233177,1.5495159,2016.1,2015.1,1.52370806]
[1773152233482,1.5495159,2016.1,2014.9,0.00610798]
[1773152233677,1.5495159,2016.1,2014.9,1.52981604]
[1773152234281,0.00582941,2016.1,2014.9,7.88193604]
[1773152234583,0.00582941,2016.1,2015.0,1.52370806]
[1773152234780,0.00582941,2016.1,2015.4,1.52370806]
[1773152234981,1.54368649,2017.5,2015.8,1.52370806]
[1773152235280,1.54368649,2017.1,2015.7,1.52370806]
[1773152235480,1.54368649,2017.1,2015.9,1.52370806]
[1773152235681,1.54368649,2017.1,2015.6,1.52370806]
[1773152235882,1.54368649,2017.1,2015.8,1.52370806]
[1773152235883,1.54827213,2017.1,2015.8,1.52370806]
[1773152236081,1.54827213,2017.1,2015.9,8.01370806]
[1773152236276,1.54827213,2017.1,2016.0,8.01370806]
[1773152236479,1.54827213,2017.1,2016.0,1.52370806]
[1773152236683,1.54368649,2016.9,2015.5,8.01270806]
[1773152236881,1.54368649,2016.7,2015.6,1.52370806]
[1773152237781,1.54368649,2016.7,2015.1,1.52370806]
[1773152237982,1.54368649,2016.7,2015.5,1.52370806]
[1773152238386,1.54368649,2017.0,2015.7,1.52370806]
[1773152238784,1.54368649,2017.0,2015.9,1.52370806]
[1773152238986,1.54368649,2017.0,2016.1,1.52370806]
[1773152239185,1.54368649,2017.0,2016.2,8.01170806]
[1773152239386,1.54368649,2017.0,2016.3,6.488]
[1773152239588,1.54368649,2017.0,2016.3,8.01170806]
[1773152239785,1.54368649,2017.0,2015.9,1.52370806]
[1773152240087,1.54368649,2017.0,2015.8,6.489]
[1773152240785,1.54368649,2017.0,2015.9,1.52370806]
[1773152241191,1.54368649,2017.0,2015.9,8.01170806]
[1773152241489,1.54368649,2017.0,2016.0,1.52370806]
[1773152241884,1.54368649,2017.0,2015.5,1.52370806]
[1773152242085,1.54368649,2016.7,2015.6,6.489]
[1773152242291,1.54368649,2016.7,2015.6,8.01270806]
[1773152242889,1.54368649,2016.7,2015.7,1.52370806]
[1773152243690,1.54368649,2016.7,2015.4,8.01170806]
[1773152243989,6.09827,2016.9,2014.9,0.00610798]
[1773152243990,1.54368649,2016.2,2015.0,1.52370806]
[1773152244386,1.54368649,2016.2,2015.1,6.489]
[1773152244586,1.54368649,2015.8,2014.9,0.00610798]
[1773152244987,1.54368649,2015.8,2014.3,1.52370806]
[1773152245181,1.54368649,2015.4,2014.3,8.01270806]
[1773152245388,1.54368649,2015.2,2014.0,1.52370806]
[1773152245682,1.54368649,2015.2,2014.1,6.489]
[1773152245882,1.54368649,2015.2,2014.2,1.52370806]
[1773152246081,1.54718146,2015.2,2014.2,1.52783322]
[1773152246493,0.00349497,2015.2,2014.2,1.52783322]
[1773152246689,1.54368649,2015.5,2014.4,0.2482]
[1773152246993,1.54368649,2016.4,2014.9,1.52370806]
[1773152247193,1.54368649,2016.4,2015.0,8.01370806]
[1773152247388,1.54368649,2016.4,2015.1,6.49]
[1773152247588,1.54368649,2016.4,2015.2,1.52370806]
[1773152248092,1.54368649,2016.2,2014.9,1.52370806]
[1773152248292,1.54368649,2016.2,2015.0,6.49]
[1773152248488,1.54368649,2016.0,2014.9,1.52370806]
[1773152248788,1.54368649,2016.0,2014.7,6.10469]
[1773152248789,1.54368649,2016.2,2015.1,1.52370806]
[1773152249193,1.54368649,2015.9,2014.5,1.52370806]
[1773152249394,1.54368649,2015.7,2014.6,6.491]
[1773152249594,1.54368649,2015.7,2014.6,8.01470806]
[1773152249888,10.44150036,2016.3,2014.6,8.01470806]
[1773152249889,1.54368649,2016.1,2014.7,1.52370806]
[1773152250096,1.79535285,2016.4,2015.0,1.52370806]
[1773152250592,1.54368649,2016.0,2014.7,1.52370806]
[1773152250790,1.54368649,2016.0,2014.3,1.52370806]
[1773152251090,1.54368649,2015.6,2014.3,1.52370806]
[1773152251286,1.54368649,2015.4,2014.3,1.52370806]
[1773152251894,1.54368649,2015.2,2014.2,0.00412516]
[1773152252194,1.54368649,2015.0,2014.2,0.00412516]
[1773152252689,1.54368649,2014.8,2013.6,1.52370806]
[1773152253595,1.54817491,2014.8,2013.8,1.44605136]
[1773152253796,0.00448842,2014.8,2014.0,1.44605136]
[1773152253992,0.00448842,2014.8,2014.2,1.44605136]
[1773152254194,1.38416886,2015.4,2014.2,1.44605136]
[1773152254393,1.38416886,2016.0,2014.4,1.44605136]
[1773152254690,1.38416886,2016.5,2015.0,1.44605136]
[1773152254896,1.38416886,2016.5,2015.2,1.44605136]
[1773152255094,1.38880993,2016.5,2015.2,1.45091395]
[1773152255289,1.38880993,2016.5,2015.3,1.44605136]
[1773152256694,1.38416886,2016.3,2015.2,0.00486259]
[1773152257092,1.38416886,2016.1,2015.2,0.00486259]
[1773152257797,1.38416886,2016.1,2015.2,1.45091395]
[1773152257992,1.38416886,2016.4,2015.2,1.45091395]
[1773152258691,1.38416886,2016.4,2015.4,1.44605136]
[1773152259398,1.63211886,2016.4,2015.2,0.00486259]
[1773152259795,1.38416886,2016.4,2015.2,1.45091395]
[1773152260399,0.00464107,2016.5,2015.3,1.44605136]
[1773152260599,0.24789,2017.0,2015.8,0.24802]
[1773152260600,1.38416886,2017.0,2015.8,0.24802]
[1773152260801,1.38416886,2017.1,2015.4,1.44605136]
[1773152261003,1.63208886,2016.7,2015.2,1.45091395]
[1773152261303,1.38416886,2016.7,2015.2,1.45091395]
[1773152261601,1.38996266,2016.7,2015.2,1.45091395]
[1773152261900,1.38416886,2016.5,2015.2,1.45091395]
[1773152262401,0.0057938,2016.7,2015.2,1.45091395]
[1773152262402,1.38416886,2016.3,2015.2,1.45091395]
[1773152263398,1.38416886,2016.6,2015.4,1.44605136]
[1773152264104,1.38416886,2016.6,2015.6,1.44605136]
[1773152264403,1.38416886,2016.6,2015.3,1.44605136]
[1773152264600,1.38416886,2016.2,2015.2,0.00486259]
[1773152264996,1.38416886,2016.0,2015.2,0.00486259]
[1773152266203,1.38416886,2015.8,2015.2,0.00486259]
[1773152266501,1.35657006,2015.6,2014.4,1.36348052]
[1773152266804,1.35657006,2015.4,2014.3,6.493]
[1773152267206,1.35657006,2015.4,2014.4,1.36348052]
[1773152267400,6.493,2015.9,2014.4,1.36348052]
[1773152267401,1.35657006,2015.9,2014.4,1.36973542]
[1773152268001,1.35657006,2015.9,2014.6,1.36348052]
[1773152268397,1.35657006,2015.9,2014.7,7.85648052]
[1773152268597,3.95010491,2016.7,2015.3,0.24808]
[1773152268906,1.35657006,2016.6,2015.6,1.36348052]
[1773152269105,0.0057938,2016.7,2016.0,1.36348052]
[1773152269301,0.0057938,2016.7,2016.0,1.36914423]
[1773152269608,1.35657006,2017.2,2016.0,1.36914423]
[1773152270508,1.36177925,2017.2,2016.0,1.36914423]
[1773152270707,1.35657006,2017.0,2016.0,0.00566371]
[1773152271305,1.35657006,2016.8,2016.0,0.00566371]
[1773152271806,0.00520919,2017.2,2016.3,1.36348052]
[1773152272109,1.35657006,2017.6,2016.5,1.36348052]
[1773152272904,1.3611538,2017.6,2016.5,1.36348052]
[1773152273599,1.3611538,2017.6,2016.5,7.85648052]
[1773152274004,1.6089638,2017.6,2016.2,1.36348052]
[1773152274703,10.04447036,2018.3,2016.8,1.36348052]
[1773152274704,1.35657006,2017.9,2016.8,1.36348052]
[1773152275503,1.35657006,2017.9,2016.6,1.36348052]
[1773152275805,1.36229913,2017.9,2016.6,1.36348052]
[1773152276701,1.36229913,2017.9,2016.8,1.36348052]
[1773152278605,1.36229913,2017.9,2016.6,7.85548052]
[1773152279002,1.36229913,2017.9,2016.7,1.36348052]
[1773152280405,1.35657006,2017.5,2016.4,1.36348052]
[1773152280611,1.35657006,2017.5,2016.0,1.36914423]
[1773152280801,1.35657006,2017.3,2016.0,1.36914423]
[1773152281407,0.24783,2017.4,2016.0,1.36914423]
[1773152281408,1.35657006,2016.9,2016.0,0.00566371]
[1773152281608,1.35657006,2016.7,2016.0,0.00566371]
[1773152283905,6.09986,2016.4,2015.4,1.32410176]
[1773152284109,6.09986,2016.4,2014.8,1.35918396]
[1773152284110,1.42066215,2016.1,2014.8,1.35918396]
[1773152285006,1.42419689,2016.1,2014.8,1.36313214]
[1773152286110,1.42066215,2015.9,2014.8,1.36313214]
[1773152287609,1.42066215,2015.7,2014.8,1.36313214]
[1773152287916,1.42066215,2016.0,2014.8,1.36313214]
[1773152288913,1.42066215,2015.6,2014.8,0.00394818]
[1773152289312,1.42066215,2015.6,2014.8,1.36313214]
[1773152289509,1.42066215,2016.0,2014.8,1.36313214]
[1773152290815,1.66867215,2015.9,2014.8,1.36313214]
[1773152291017,1.66867215,2015.9,2014.8,0.00394818]
[1773152292014,1.37138003,2015.1,2013.9,1.39013111]
[1773152292416,1.37138003,2015.4,2014.1,1.39013111]
[1773152292716,6.495,2016.0,2013.9,6.10724]
[1773152292717,1.37138003,2015.6,2014.3,1.39013111]
[1773152293015,1.37138003,2015.6,2014.5,1.39013111]
[1773152294017,1.37138003,2016.3,2014.9,1.39013111]
[1773152294210,1.37491477,2016.1,2015.1,1.39013111]
[1773152294410,1.37491477,2016.1,2015.2,1.39013111]
[1773152295715,0.00353474,2016.1,2015.2,1.39013111]
[1773152297810,0.00353474,2016.1,2015.4,1.39013111]
[1773152298214,1.37138003,2016.6,2015.6,1.39013111]
[1773152298712,1.37138003,2017.2,2015.8,1.39013111]
[1773152298912,1.37138003,2017.2,2016.0,1.39013111]
[1773152299113,0.00639064,2017.2,2016.0,1.39556039]
[1773152299317,0.00639064,2017.2,2016.4,1.39013111]
[1773152299509,1.37138003,2017.7,2016.4,1.39013111]
[1773152299711,1.37138003,2017.7,2016.6,1.39013111]
[1773152299916,1.37138003,2017.7,2016.7,1.39013111]
[1773152300518,1.37747723,2017.7,2016.7,1.39013111]
[1773152300916,1.37747723,2017.7,2016.5,0.24794]
[1773152301116,1.37747723,2017.7,2016.5,1.63807111]
[1773152301816,1.37747723,2017.7,2016.6,1.39013111]
[1773152303121,0.0060972,2017.7,2016.8,1.39013111]
[1773152303321,0.0060972,2017.7,2017.0,1.39013111]
[1773152303520,1.37747723,2017.7,2017.0,1.39013111]
[1773152303716,1.37747723,2017.7,2016.1,1.39013111]
[1773152303920,1.37747723,2017.7,2016.3,1.39013111]
[1773152304120,1.37138003,2017.9,2017.0,1.39013111]
[1773152304320,1.37138003,2017.9,2016.9,0.24789]
[1773152304321,0.77723161,2018.0,2017.2,1.39013111]
[1773152305019,1.37138003,2018.6,2017.4,1.39013111]
[1773152305225,1.37138003,2018.6,2017.6,1.39013111]
[1773152305520,1.37138003,2019.3,2017.8,1.39013111]
[1773152305724,1.37138003,2019.3,2018.0,1.39013111]
[1773152306217,1.37540763,2019.3,2018.0,0.0057105]
[1773152306522,1.37138003,2018.9,2018.0,0.0057105]
[1773152306718,1.37138003,2018.7,2018.0,0.0057105]
[1773152306913,1.37138003,2018.7,2017.5,6.494]
[1773152307422,1.37138003,2018.7,2017.6,1.39013111]
[1773152307820,1.37138003,2018.7,2017.6,1.39642036]
[1773152308524,1.37138003,2018.7,2017.6,0.00628925]
[1773152308924,1.37138003,2018.5,2017.6,0.00628925]
[1773152309120,1.37138003,2018.3,2017.1,1.39013111]
[1773152310123,1.37138003,2018.3,2017.1,1.39630812]
[1773152311523,1.37138003,2018.6,2017.2,1.63798111]
[1773152312116,1.37138003,2018.6,2017.5,1.39013111]
[1773152312425,1.37138003,2019.2,2017.5,1.39013111]
[1773152312726,1.37138003,2019.2,2017.7,1.39013111]
[1773152314622,1.27721143,2019.0,2017.7,1.39013111]
[1773152314823,1.27721143,2018.6,2017.5,1.27555668]
[1773152315027,1.27721143,2018.4,2017.5,1.27555668]
[1773152316726,1.27721143,2018.4,2017.3,1.27555668]
[1773152317320,1.27721143,2018.2,2017.1,1.28173369]
[1773152317526,1.27721143,2018.2,2017.3,1.27555668]
[1773152318533,0.24766,2018.8,2017.5,1.27555668]
[1773152318534,1.27721143,2018.7,2017.5,1.27555668]
[1773152318830,0.24768,2018.6,2017.5,1.27555668]
[1773152319036,1.27721143,2018.5,2017.2,1.27555668]
[1773152319426,0.24768,2018.6,2017.1,0.00617701]
[1773152319427,1.27721143,2018.1,2017.1,0.00617701]
[1773152319731,1.27721143,2018.1,2017.1,1.28173369]
[1773152319933,1.27721143,2018.9,2017.7,1.27555668]
[1773152320134,1.27721143,2018.7,2017.7,1.27555668]
[1773152320635,6.09123,2019.2,2017.1,0.00617701]
[1773152320636,1.27721143,2018.5,2017.5,1.27555668]
[1773152321034,1.27721143,2019.0,2017.5,1.52336668]
[1773152321235,1.27721143,2019.0,2018.0,1.27555668]
[1773152322235,1.27721143,2019.0,2018.2,1.27555668]
[1773152322937,1.27721143,2019.2,2018.2,1.27555668]
[1773152323433,1.27721143,2019.5,2018.4,1.27555668]
[1773152323639,1.28123903,2019.3,2018.4,1.27555668]
[1773152325334,1.27721143,2019.1,2018.1,1.27555668]
[1773152325529,1.27721143,2018.9,2017.8,1.27555668]
[1773152325935,1.27721143,2019.2,2018.2,1.27555668]
[1773152326636,1.33572632,2019.3,2018.2,1.27555668]
[1773152328742,1.33572632,2019.3,2017.9,1.34256755]
[1773152329436,1.33572632,2019.3,2018.1,1.34256755]
[1773152331637,1.33169872,2018.7,2017.5,1.34256755]
[1773152331839,1.33169872,2018.5,2017.2,1.34256755]
[1773152332033,1.33169872,2018.3,2017.2,1.34256755]
[1773152337049,1.33169872,2018.1,2017.1,0.00617701]
[1773152337752,1.33169872,2018.1,2017.1,1.34874456]
[1773152337940,1.33169872,2018.7,2017.3,1.34256755]
[1773152338540,0.24768,2018.6,2017.3,1.34256755]
[1773152338740,0.24768,2018.6,2017.1,1.34874456]
[1773152338741,1.33169872,2018.5,2017.1,1.34874456]
[1773152339141,1.33169872,2018.5,2017.1,1.59660456]
[1773152339344,1.33169872,2018.5,2017.4,1.34256755]
[1773152339950,1.33169872,2018.5,2017.1,6.10371701]
[1773152339951,1.33169872,2018.5,2017.6,1.34256755]
[1773152340547,1.33169872,2019.0,2017.6,1.34256755]
[1773152341249,1.33169872,2018.6,2017.1,10.22258979]
[1773152341452,1.33169872,2018.6,2017.5,1.34256755]
[1773152341950,1.33169872,2018.6,2017.7,1.34256755]
[1773152342154,1.33169872,2018.6,2017.4,3.92728285]
[1773152342155,1.33169872,2018.6,2017.5,1.34256755]
[1773152342751,1.33169872,2018.6,2017.7,1.34256755]
[1773152343146,1.33169872,2018.4,2017.3,1.34256755]
[1773152343346,1.33169872,2018.2,2017.3,1.34256755]
[1773152343549,1.33169872,2018.0,2017.1,0.00617701]
[1773152344559,1.33169872,2018.0,2017.1,1.2847467]
[1773152346153,1.28072462,2018.2,2017.3,1.27856969]
[1773152346552,1.28072462,2018.2,2017.1,1.2847467]
[1773152346751,1.28072462,2018.2,2017.3,1.27856969]
[1773152347858,1.52845462,2018.2,2017.1,0.00617701]
[1773152348055,1.28072462,2018.2,2017.1,1.5326067]
[1773152351452,1.28072462,2018.2,2017.1,0.00617701]
[1773152351655,1.28072462,2018.0,2017.1,0.00617701]
[1773152352053,1.28072462,2018.0,2017.2,1.27856969]
[1773152353156,0.24768,2018.6,2017.2,1.27856969]
[1773152353462,1.28072462,2018.5,2017.4,1.27856969]
[1773152354355,1.28072462,2018.5,2017.5,1.27856969]
[1773152355862,1.28072462,2018.3,2017.2,1.27856969]
[1773152356256,1.28072462,2018.3,2017.5,1.27856969]
[1773152356956,1.28072462,2018.3,2017.6,1.52636969]
[1773152357260,1.28072462,2018.8,2017.6,1.52636969]
[1773152357561,1.28072462,2019.0,2018.0,1.27856969]
[1773152357956,1.28072462,2019.2,2018.4,1.27856969]
[1773152358358,1.28072462,2019.2,2018.1,1.27856969]
[1773152358557,1.28072462,2019.2,2018.2,1.52629969]
[1773152359154,1.28072462,2019.2,2018.4,1.52626969]
[1773152359661,0.0040276,2019.3,2018.4,1.52626969]
[1773152359864,1.28475222,2019.3,2018.4,1.52626969]
[1773152360159,1.28475222,2019.3,2018.1,1.27856969]
[1773152360660,1.28475222,2019.3,2018.4,1.52626969]
[1773152361655,0.0040276,2019.3,2018.4,1.52626969]
[1773152361856,1.28072462,2020.0,2018.9,1.27856969]
[1773152362054,1.28072462,2020.0,2018.6,1.27856969]
[1773152362255,1.28072462,2019.9,2018.6,1.27856969]
[1773152362453,1.28072462,2019.9,2018.7,1.27856969]
[1773152362853,1.28524828,2019.9,2018.7,1.2825394]
[1773152363257,1.28524828,2019.9,2018.7,0.00396971]
[1773152363453,1.28072462,2019.4,2018.7,1.2825394]
[1773152363862,1.28072462,2019.4,2018.7,0.00396971]
[1773152364062,1.28072462,2019.4,2018.7,1.2825394]
[1773152364454,0.00452366,2019.9,2018.8,1.27856969]
[1773152364659,1.28072462,2019.8,2018.8,1.27856969]
[1773152366159,1.28072462,2019.8,2019.0,1.27856969]
[1773152367262,1.28072462,2019.8,2018.8,7.76856969]
[1773152367468,1.28072462,2019.8,2018.7,0.00396971]
[1773152368371,1.52828462,2019.6,2018.3,1.27856969]
[1773152368563,1.28072462,2019.6,2018.4,1.27856969]
[1773152368964,1.28072462,2019.6,2018.6,1.27856969]
[1773152369171,1.28072462,2019.6,2018.8,1.27856969]
[1773152369370,1.28072462,2019.6,2018.8,1.28323953]
[1773152369765,1.28072462,2019.6,2018.8,0.00466984]
[1773152369966,1.28072462,2019.6,2018.3,1.27856969]
[1773152370268,0.24759,2019.3,2018.1,1.27856969]
[1773152370470,1.28072462,2018.8,2017.8,1.27856969]
[1773152370668,1.28072462,2018.6,2017.3,1.27856969]
[1773152370868,1.28072462,2018.4,2017.3,1.27856969]
[1773152371062,1.2863352,2018.4,2017.3,0.00432033]
[1773152371872,1.28072462,2018.6,2017.8,1.27856969]
[1773152372061,1.28072462,2018.6,2017.7,2.94617614]
[1773152372262,1.28072462,2018.6,2017.8,1.27856969]
[1773152373067,1.28432669,2018.6,2017.6,1.52636969]
[1773152374572,1.28432669,2018.6,2017.4,1.29054344]
[1773152375174,1.22983534,2018.4,2017.3,6.49332033]
[1773152375367,1.22983534,2018.4,2017.3,1.29486377]
[1773152375567,1.22983534,2018.4,2017.3,0.00432033]
[1773152375972,1.22983534,2018.4,2017.3,1.29486377]
[1773152376472,1.23343741,2018.6,2017.8,1.29054344]
[1773152376977,1.23343741,2018.6,2017.9,1.53831344]
[1773152377171,1.22983534,2019.4,2017.9,1.53831344]
[1773152377473,1.22983534,2019.9,2018.8,1.29054344]
[1773152378168,1.47736534,2019.8,2018.6,1.29054344]
[1773152378371,1.22983534,2019.7,2018.4,1.29054344]
[1773152378567,1.22983534,2019.5,2018.4,1.29054344]
[1773152379176,0.24758,2019.4,2018.4,1.29054344]
[1773152379376,1.22983534,2019.3,2018.4,1.29522536]
[1773152379567,1.22983534,2019.3,2018.4,0.00468192]
[1773152379773,1.22983534,2019.1,2018.0,1.29054344]
[1773152380872,1.22983534,2019.1,2018.0,0.00631383]
[1773152381374,1.22983534,2018.9,2018.0,0.00631383]
[1773152381976,1.22983534,2018.7,2018.0,0.00631383]
[1773152383674,1.22983534,2018.7,2017.6,1.29054344]
[1773152384777,1.47751534,2018.6,2017.6,0.00478193]
[1773152385670,1.22983534,2018.4,2017.6,0.00478193]
[1773152385870,1.23612779,2018.4,2017.6,0.00478193]
[1773152386070,0.24772,2018.3,2017.6,0.00478193]
[1773152386277,1.22983534,2018.2,2017.6,0.00478193]
[1773152386678,1.25588008,2018.4,2017.6,1.23942867]
[1773152389988,1.50359008,2018.4,2017.6,0.00478193]
[1773152390189,1.50359008,2018.4,2016.9,1.23464674]
[1773152390584,1.49731763,2018.2,2016.9,1.23464674]
[1773152390790,1.24958763,2017.7,2016.6,1.23464674]
[1773152391193,1.24958763,2017.7,2016.6,1.23907142]
[1773152392088,1.24958763,2018.3,2017.2,1.23464674]
[1773152393888,1.24958763,2018.3,2017.4,1.23464674]
[1773152394092,1.24958763,2018.3,2017.5,1.23464674]
[1773152394493,0.00629245,2018.4,2017.5,1.23464674]
[1773152394689,0.00629245,2018.4,2017.8,1.23464674]
[1773152395093,1.24958763,2018.8,2017.8,1.23464674]
[1773152396195,1.24958763,2018.6,2017.5,1.23464674]
[1773152398594,1.24958763,2018.6,2017.8,1.23464674]
[1773152398797,1.25396378,2018.8,2017.8,1.23464674]
[1773152399694,0.24774,2018.2,2017.3,1.23464674]
[1773152399899,1.24958763,2018.1,2017.3,1.23464674]
[1773152400293,1.24958763,2018.4,2017.3,1.23464674]
[1773152400899,1.24958763,2018.2,2017.3,1.23464674]
[1773152401801,1.24958763,2018.0,2016.8,1.23464674]
[1773152402101,1.24958763,2017.6,2016.8,1.23464674]
[1773152402396,1.24958763,2017.6,2016.6,1.23907142]
[1773152402597,1.24958763,2017.8,2016.8,1.23464674]
[1773152403494,1.24958763,2018.1,2017.2,1.23464674]
[1773152403699,1.16693514,2018.6,2017.4,1.19768038]
[1773152404094,1.16693514,2018.2,2017.4,1.19768038]
[1773152404895,1.16693514,2018.2,2017.1,6.491]
[1773152404896,1.16693514,2018.2,2017.1,1.19768038]
[1773152405099,1.16693514,2018.0,2017.1,1.19768038]
[1773152405492,1.16693514,2018.0,2016.8,1.19768038]
[1773152405702,1.16693514,2017.6,2016.6,0.00442468]
[1773152405904,1.16693514,2017.6,2016.6,1.20210506]
[1773152406305,1.16693514,2017.4,2016.6,0.00442468]
[1773152407303,1.16693514,2017.6,2016.6,1.20210506]
[1773152407493,1.16693514,2017.6,2016.6,1.45002506]
[1773152409100,1.16693514,2017.8,2016.6,1.45002506]
[1773152410905,7.65893514,2018.2,2016.9,1.19768038]
[1773152411106,1.16693514,2018.2,2016.9,1.19768038]
[1773152411506,1.16693514,2018.2,2017.1,1.19768038]
[1773152412101,0.24777,2017.9,2016.7,1.19768038]
[1773152412404,1.16693514,2017.8,2016.7,1.19768038]
[1773152414103,1.16693514,2017.8,2016.9,1.19768038]
[1773152415414,1.16693514,2017.8,2016.7,1.19768038]
[1773152416209,1.16693514,2017.8,2016.7,1.44559038]
[1773152416808,1.16693514,2017.6,2016.6,0.00442468]